lending/lending_fUSD_20250516
["ID","MTS","AMOUNT","RATE_DAILY","PERIOD"]
[361250813,1747392663222,-198.93645751,0.00016612,2]
[361250814,1747392663232,-2844.14,0.00016641,2]
[361250815,1747392663243,-715.0,0.00016676,2]
[361250816,1747392663253,-1109.33,0.00016689,2]
[361250817,1747392663263,-316.80591196,0.00016693,2]
[361250818,1747392663273,-1256.75,0.00016702,2]
[361250819,1747392663283,-150175.03340585,0.00016703,2]
[361250820,1747392663293,-278.7769,0.00016703,2]
[361250821,1747392663303,-151.0,0.00016703,2]
[361250822,1747392663313,-259.269984,0.00016703,2]
[361250823,1747392663323,-468.486104,0.00016703,2]
[361250824,1747392663333,-468.486104,0.00016703,2]
[361250825,1747392663344,-1733.787931,0.00016703,2]
[361250826,1747392663354,-1733.78793,0.00016703,2]
[361250827,1747392663364,-1109.33,0.0001671,2]
[361250828,1747392663374,-2844.14,0.0001671,2]
[361250829,1747392663383,-75000.0,0.00016711,7]
[361250830,1747392663393,-1109.33,0.00016711,2]
[361250831,1747392663403,-1109.33,0.00016711,2]
[361250832,1747392663413,-1109.33,0.00016711,2]
[361250833,1747392663422,-1109.33,0.00016711,2]
[361250834,1747392663431,-1109.33,0.00016711,2]
[361250835,1747392663442,-2844.14,0.00016711,2]
[361250836,1747392663452,-2844.14,0.00016711,2]
[361250837,1747392663462,-2844.14,0.00016711,2]
[361250838,1747392663472,-2844.14,0.00016711,2]
[361250839,1747392663483,-2844.14,0.00016711,2]
[361250840,1747392663492,-1256.75,0.00016711,2]
[361250841,1747392663502,-1256.75,0.00016711,2]
[361250842,1747392663512,-1256.75,0.00016711,2]
[361250843,1747392663521,-1256.75,0.00016711,2]
[361250844,1747392663531,-1256.75,0.00016711,2]
[361250845,1747392663540,-1256.75,0.00016711,2]
[361250846,1747392663550,-1256.75,0.00016711,2]
[361250847,1747392663560,-1256.75,0.00016711,2]
[361250848,1747392663570,-1256.75,0.00016711,2]
[361250849,1747392663580,-1256.9,0.00016711,2]
[361250850,1747392663590,-400.0,0.00016712,2]
[361250851,1747392663600,-400.0,0.00016712,2]
[361250852,1747392663610,-400.0,0.00016712,2]
[361250853,1747392663620,-400.0,0.00016712,2]
[361250854,1747392663630,-406.65260481,0.00016712,2]
[361250855,1747392663640,-400.0,0.00016712,2]
[361250856,1747392663650,-400.0,0.00016712,2]
[361250857,1747392663660,-400.0,0.00016712,2]
[361250858,1747392663670,-400.0,0.00016712,2]
[361250859,1747392663680,-400.0,0.00016712,2]
[361250860,1747392663690,-172.85244818,0.00016712,2]
[361250861,1747392663701,-300.0,0.00016712,2]
[361250862,1747392663711,-300.17761535,0.00016712,2]
[361250863,1747392663721,-400.0,0.00016712,2]
[361250864,1747392663731,-292.68790023,0.00016712,2]
[361250865,1747392663741,-511.71345301,0.00016712,2]
[361250866,1747392663750,-400.0,0.00016712,2]
[361250867,1747392663761,-400.0,0.00016712,2]
[361250868,1747392663771,-405.56360711,0.00016712,2]
[361250869,1747392663782,-508.86230388,0.00016712,2]
[361250870,1747392663793,-400.0,0.00016712,2]
[361250871,1747392663803,-400.0,0.00016712,2]
[361250872,1747392663816,-400.0,0.00016712,2]
[361250873,1747392663826,-400.0,0.00016712,2]
[361250874,1747392663836,-400.0,0.00016712,2]
[361250875,1747392663846,-400.0,0.00016712,2]
[361250876,1747392663856,-505.8493324,0.00016712,2]
[361250877,1747392663867,-400.0,0.00016712,2]
[361250878,1747392663876,-400.0,0.00016712,2]
[361250879,1747392663886,-436.26220421,0.00016712,2]
[361250880,1747392663896,-297.42170741,0.00016712,2]
[361250881,1747392663906,-400.0,0.00016712,2]
[361250882,1747392663916,-400.0,0.00016712,2]
[361250883,1747392663926,-400.0,0.00016712,2]
[361250884,1747392663937,-410.64040621,0.00016712,2]
[361250885,1747392663946,-402.50340771,0.00016712,2]
[361250886,1747392663960,-512.03801048,0.00016712,2]
[361250887,1747392663971,-400.0,0.00016712,2]
[361250888,1747392663981,-400.0,0.00016712,2]
[361250889,1747392663991,-533.60480906,0.00016712,2]
[361250890,1747392664002,-400.0,0.00016712,2]
[361250891,1747392664013,-285.4675033,0.00016712,2]
[361250892,1747392664023,-400.0,0.00016712,2]
[361250893,1747392664034,-400.0,0.00016712,2]
[361250894,1747392664045,-400.0,0.00016712,2]
[361250895,1747392664055,-576.71,0.00016712,2]
[361250896,1747392664068,-400.0,0.00016712,2]
[361250897,1747392664079,-231.17798991,0.00016712,2]
[361250898,1747392664090,-400.0,0.00016712,2]
[361250899,1747392664101,-400.0,0.00016712,2]
[361250900,1747392664111,-400.0,0.00016712,2]
[361250901,1747392664121,-400.0,0.00016712,2]
[361250902,1747392664131,-400.0,0.00016712,2]
[361250903,1747392664141,-400.0,0.00016712,2]
[361250904,1747392664152,-239.79361494,0.00016712,2]
[361250905,1747392664161,-400.0,0.00016712,2]
[361250906,1747392664171,-400.0,0.00016712,2]
[361250907,1747392664182,-400.0,0.00016712,2]
[361250908,1747392664192,-413.18187418,0.00016712,2]
[361250909,1747392664202,-400.0,0.00016712,2]
[361250910,1747392664213,-400.0,0.00016712,2]
[361250911,1747392664224,-400.0,0.00016712,2]
[361250912,1747392664234,-151.0,0.00016712,2]
[361250913,1747392664245,-400.0,0.00016712,2]
[361250914,1747392664256,-400.0,0.00016712,2]
[361250915,1747392664266,-401.76616374,0.00016712,2]
[361250916,1747392664277,-400.0,0.00016712,2]
[361250917,1747392664287,-646.71,0.00016712,2]
[361250918,1747392664296,-348.87511888,0.00016712,2]
[361250919,1747392664306,-400.0,0.00016712,2]
[361250920,1747392664317,-400.0,0.00016712,2]
[361250921,1747392664327,-400.0,0.00016712,2]
[361250922,1747392664337,-400.0,0.00016712,2]
[361250923,1747392664347,-400.0,0.00016712,2]
[361250924,1747392664358,-400.0,0.00016712,2]
[361250925,1747392664367,-400.0,0.00016712,2]
[361250926,1747392664377,-400.0,0.00016712,2]
[361250927,1747392664388,-400.0,0.00016712,2]
[361250928,1747392664398,-327.105031,0.00016712,2]
[361250929,1747392664409,-400.0,0.00016712,2]
[361250930,1747392664419,-400.0,0.00016712,2]
[361250931,1747392664430,-400.0,0.00016712,2]
[361250932,1747392664440,-400.0,0.00016712,2]
[361250933,1747392664451,-400.0,0.00016712,2]
[361250934,1747392664461,-400.0,0.00016712,2]
[361250935,1747392664471,-400.0,0.00016712,2]
[361250936,1747392664480,-400.0,0.00016712,2]
[361250937,1747392664490,-400.0,0.00016712,2]
[361250938,1747392664499,-534.51029804,0.00016712,2]
[361250939,1747392664509,-400.0,0.00016712,2]
[361250940,1747392664519,-443.39839946,0.00016712,2]
[361250941,1747392664528,-400.0,0.00016712,2]
[361250942,1747392664538,-400.0,0.00016712,2]
[361250943,1747392664548,-400.0,0.00016712,2]
[361250944,1747392664558,-400.0,0.00016712,2]
[361250945,1747392664570,-400.0,0.00016712,2]
[361250946,1747392664579,-400.79111794,0.00016712,2]
[361250947,1747392664589,-400.0,0.00016712,2]
[361250948,1747392664599,-400.0,0.00016712,2]
[361250949,1747392664608,-526.43541665,0.00016712,2]
[361250950,1747392664618,-409.82302666,0.00016712,2]
[361250951,1747392664628,-400.0,0.00016712,2]
[361250952,1747392664638,-795.52,0.00016712,2]
[361250953,1747392664647,-322.90615588,0.00016712,2]
[361250954,1747392664657,-400.0,0.00016712,2]
[361250955,1747392664667,-400.0,0.00016712,2]
[361250956,1747392664676,-400.0,0.00016712,2]
[361250957,1747392664686,-400.0,0.00016712,2]
[361250958,1747392664696,-400.0,0.00016712,2]
[361250959,1747392664706,-400.0,0.00016712,2]
[361250960,1747392664715,-400.0,0.00016712,2]
[361250961,1747392664726,-400.0,0.00016712,2]
[361250962,1747392664736,-400.0,0.00016712,2]
[361250963,1747392664745,-400.0,0.00016712,2]
[361250964,1747392664755,-1000.0,0.00016712,2]
[361250965,1747392664765,-400.0,0.00016712,2]
[361250966,1747392664993,-400.0,0.00016712,2]
[361250967,1747392665003,-400.0,0.00016712,2]
[361250968,1747392665013,-405.17093689,0.00016712,2]
[361250969,1747392665022,-400.0,0.00016712,2]
[361250970,1747392665035,-400.0,0.00016712,2]
[361250971,1747392665045,-587.82,0.00016712,2]
[361250972,1747392665054,-400.0,0.00016712,2]
[361250973,1747392665064,-400.0,0.00016712,2]
[361250974,1747392665074,-400.0,0.00016712,2]
[361250975,1747392665084,-400.0,0.00016712,2]
[361250976,1747392665094,-390.48600036,0.00016712,2]
[361250977,1747392665104,-400.0,0.00016712,2]
[361250978,1747392665114,-400.0,0.00016712,2]
[361250979,1747392665124,-400.0,0.00016712,2]
[361250980,1747392665135,-400.0,0.00016712,2]
[361250981,1747392665144,-400.0,0.00016712,2]
[361250982,1747392665154,-407.39408937,0.00016712,2]
[361250983,1747392665164,-400.0,0.00016712,2]
[361250984,1747392665175,-400.0,0.00016712,2]
[361250985,1747392665184,-1014.57,0.00016712,2]
[361250986,1747392665194,-400.0,0.00016712,2]
[361250987,1747392665203,-400.0,0.00016712,2]
[361250988,1747392665213,-400.0,0.00016712,2]
[361250989,1747392665223,-400.0,0.00016712,2]
[361250990,1747392665232,-400.0,0.00016712,2]
[361250991,1747392665242,-640.38,0.00016712,2]
[361250992,1747392665252,-400.0,0.00016712,2]
[361250993,1747392665263,-490.42,0.00016712,2]
[361250994,1747392665273,-400.0,0.00016712,2]
[361250995,1747392665282,-400.0,0.00016712,2]
[361250996,1747392665292,-400.0,0.00016712,2]
[361250997,1747392665301,-400.0,0.00016712,2]
[361250998,1747392665311,-400.0,0.00016712,2]
[361250999,1747392665320,-400.0,0.00016712,2]
[361251000,1747392665330,-414.98,0.00016712,2]
[361251001,1747392665340,-400.0,0.00016712,2]
[361251002,1747392665349,-400.0,0.00016712,2]
[361251003,1747392665359,-400.0,0.00016712,2]
[361251004,1747392665369,-400.0,0.00016712,2]
[361251005,1747392665378,-400.0,0.00016712,2]
[361251006,1747392665388,-477.82,0.00016712,2]
[361251007,1747392665398,-400.0,0.00016712,2]
[361251008,1747392665408,-527.79,0.00016712,2]
[361251009,1747392665418,-400.0,0.00016712,2]
[361251010,1747392665427,-400.0,0.00016712,2]
[361251011,1747392665437,-400.0,0.00016712,2]
[361251012,1747392665447,-400.0,0.00016712,2]
[361251013,1747392665456,-400.0,0.00016712,2]
[361251014,1747392665465,-400.0,0.00016712,2]
[361251015,1747392665475,-400.0,0.00016712,2]
[361251016,1747392665485,-400.0,0.00016712,2]
[361251017,1747392665494,-400.0,0.00016712,2]
[361251018,1747392665504,-629.88,0.00016712,2]
[361251019,1747392665513,-468.486104,0.00016712,2]
[361251020,1747392665523,-400.0,0.00016712,2]
[361251021,1747392665533,-400.0,0.00016712,2]
[361251022,1747392665544,-400.0,0.00016712,2]
[361251023,1747392665554,-400.0,0.00016712,2]
[361251024,1747392665564,-400.0,0.00016712,2]
[361251025,1747392665574,-468.486094,0.00016712,2]
[361251026,1747392665584,-232.86047824,0.00016712,2]
[361251027,1747392665595,-260.21826878,0.00016712,2]
[361251028,1747392665605,-400.0,0.00016712,2]
[361251029,1747392665615,-400.0,0.00016712,2]
[361251030,1747392665625,-400.0,0.00016712,2]
[361251031,1747392665635,-400.0,0.00016712,2]
[361251032,1747392665646,-400.0,0.00016712,2]
[361251033,1747392665656,-400.0,0.00016712,2]
[361251034,1747392665667,-417.96,0.00016712,2]
[361251035,1747392665676,-400.0,0.00016712,2]
[361251036,1747392665686,-400.0,0.00016712,2]
[361251037,1747392665696,-400.0,0.00016712,2]
[361251038,1747392665706,-400.0,0.00016712,2]
[361251039,1747392665716,-400.0,0.00016712,2]
[361251040,1747392665727,-400.0,0.00016712,2]
[361251041,1747392665745,-400.0,0.00016712,2]
[361251042,1747392665766,-694.76,0.00016712,2]
[361251043,1747392665786,-477.75970994,0.00016712,2]
[361251044,1747392665804,-400.0,0.00016712,2]
[361251045,1747392665815,-400.0,0.00016712,2]
[361251046,1747392665825,-400.0,0.00016712,2]
[361251047,1747392665835,-207.49243232,0.00016712,2]
[361251048,1747392665845,-400.0,0.00016712,2]
[361251049,1747392665856,-400.0,0.00016712,2]
[361251050,1747392665866,-441.1218144,0.00016712,2]
[361251051,1747392665876,-246.73374926,0.00016712,2]
[361251052,1747392665886,-400.0,0.00016712,2]
[361251053,1747392665896,-418.18309338,0.00016712,2]
[361251054,1747392665905,-400.0,0.00016712,2]
[361251055,1747392665915,-593.26,0.00016712,2]
[361251056,1747392665925,-488.63,0.00016712,2]
[361251057,1747392665935,-542.2915256,0.00016712,2]
[361251058,1747392665944,-400.0,0.00016712,2]
[361251059,1747392665957,-400.0,0.00016712,2]
[361251060,1747392665968,-400.0,0.00016712,2]
[361251061,1747392665978,-400.0,0.00016712,2]
[361251062,1747392665988,-400.0,0.00016712,2]
[361251063,1747392665999,-1321.320899,0.00016712,2]
[361251064,1747392666009,-188.5834,0.00016712,2]
[361251065,1747392666018,-400.0,0.00016712,2]
[361251066,1747392666027,-400.0,0.00016712,2]
[361251067,1747392666039,-411.55034039,0.00016712,2]
[361251068,1747392666049,-400.0,0.00016712,2]
[361251069,1747392666059,-400.0,0.00016712,2]
[361251070,1747392666069,-622.36,0.00016712,2]
[361251071,1747392666079,-400.0,0.00016712,2]
[361251072,1747392666088,-400.0,0.00016712,2]
[361251073,1747392666098,-400.0,0.00016712,2]
[361251074,1747392666108,-477.50460889,0.00016712,2]
[361251075,1747392666118,-400.0,0.00016712,2]
[361251076,1747392666129,-400.0,0.00016712,2]
[361251077,1747392666140,-400.0,0.00016712,2]
[361251078,1747392666150,-404.3193465,0.00016712,2]
[361251079,1747392666160,-400.0,0.00016712,2]
[361251080,1747392666170,-454.12,0.00016712,2]
[361251081,1747392666180,-400.0,0.00016712,2]
[361251082,1747392666189,-511.53,0.00016712,2]
[361251083,1747392666198,-308.276616,0.00016712,2]
[361251084,1747392666208,-400.0,0.00016712,2]
[361251085,1747392666219,-400.0,0.00016712,2]
[361251086,1747392666228,-400.0,0.00016712,2]
[361251087,1747392666238,-400.0,0.00016712,2]
[361251088,1747392666247,-400.0,0.00016712,2]
[361251089,1747392666257,-400.0,0.00016712,2]
[361251090,1747392666267,-400.0,0.00016712,2]
[361251091,1747392666277,-400.0,0.00016712,2]
[361251092,1747392666286,-400.0,0.00016712,2]
[361251093,1747392666296,-400.0,0.00016712,2]
[361251094,1747392666306,-400.0,0.00016712,2]
[361251095,1747392666317,-400.0,0.00016712,2]
[361251096,1747392666326,-400.0,0.00016712,2]
[361251097,1747392666336,-400.0,0.00016712,2]
[361251098,1747392666346,-400.0,0.00016712,2]
[361251099,1747392666355,-400.0,0.00016712,2]
[361251100,1747392666365,-400.0,0.00016712,2]
[361251101,1747392666375,-512.35,0.00016712,2]
[361251102,1747392666384,-400.0,0.00016712,2]
[361251103,1747392666394,-400.0,0.00016712,2]
[361251104,1747392666403,-637.19,0.00016712,2]
[361251105,1747392666413,-268.61422986,0.00016712,2]
[361251106,1747392667100,-131.38577014,0.00016712,2]
[361251107,1747392667111,-400.0,0.00016712,2]
[361251108,1747392667122,-573.41,0.00016712,2]
[361251109,1747392667131,-400.0,0.00016712,2]
[361251110,1747392667141,-400.0,0.00016712,2]
[361251111,1747392667151,-772.42,0.00016712,2]
[361251112,1747392667160,-400.0,0.00016712,2]
[361251113,1747392667170,-400.0,0.00016712,2]
[361251114,1747392667180,-400.0,0.00016712,2]
[361251115,1747392667190,-500.44002518,0.00016712,2]
[361251116,1747392667200,-507.41,0.00016712,2]
[361251117,1747392667209,-400.0,0.00016712,2]
[361251118,1747392667219,-400.0,0.00016712,2]
[361251119,1747392667229,-400.0,0.00016712,2]
[361251120,1747392667238,-646.27,0.00016712,2]
[361251121,1747392667248,-400.0,0.00016712,2]
[361251122,1747392667258,-400.0,0.00016712,2]
[361251123,1747392667267,-400.0,0.00016712,2]
[361251124,1747392667277,-602.48,0.00016712,2]
[361251125,1747392667287,-400.0,0.00016712,2]
[361251126,1747392667296,-400.0,0.00016712,2]
[361251127,1747392667306,-400.0,0.00016712,2]
[361251128,1747392667320,-400.0,0.00016712,2]
[361251129,1747392667330,-400.0,0.00016712,2]
[361251130,1747392667341,-1356.72,0.00016712,2]
[361251131,1747392667350,-605.87,0.00016712,2]
[361251132,1747392667360,-400.0,0.00016712,2]
[361251133,1747392667370,-400.0,0.00016712,2]
[361251134,1747392667380,-400.0,0.00016712,2]
[361251135,1747392667389,-847.79,0.00016712,2]
[361251136,1747392667399,-400.0,0.00016712,2]
[361251137,1747392667497,-1821.72,0.00016712,2]
[361251138,1747392667507,-408.39118103,0.00016712,2]
[361251139,1747392667517,-438.96,0.00016712,2]
[361251140,1747392667526,-400.0,0.00016712,2]
[361251141,1747392667536,-549.92,0.00016712,2]
[361251142,1747392667546,-400.0,0.00016712,2]
[361251143,1747392667555,-400.0,0.00016712,2]
[361251144,1747392667565,-523.94,0.00016712,2]
[361251145,1747392667574,-898.77,0.00016712,2]
[361251146,1747392667584,-413.95,0.00016712,2]
[361251147,1747392667594,-400.0,0.00016712,2]
[361251148,1747392667604,-887.07,0.00016712,2]
[361251149,1747392667614,-400.0,0.00016712,2]
[361251150,1747392667623,-400.0,0.00016712,2]
[361251151,1747392667633,-400.0,0.00016712,2]
[361251152,1747392667642,-400.0,0.00016712,2]
[361251153,1747392667652,-400.0,0.00016712,2]
[361251154,1747392667662,-555.89,0.00016712,2]
[361251155,1747392667671,-400.0,0.00016712,2]
[361251156,1747392667681,-399.38226489,0.00016712,2]
[361251157,1747392667690,-400.0,0.00016712,2]
[361251158,1747392667700,-400.0,0.00016712,2]
[361251159,1747392667709,-400.0,0.00016712,2]
[361251160,1747392667719,-400.0,0.00016712,2]
[361251161,1747392667728,-400.0,0.00016712,2]
[361251162,1747392667737,-400.0,0.00016712,2]
[361251163,1747392667747,-1068.16,0.00016712,2]
[361251164,1747392667756,-1020.49,0.00016712,2]
[361251165,1747392667766,-1099.92,0.00016712,2]
[361251166,1747392667776,-452.7,0.00016712,2]
[361251167,1747392667785,-407.31956432,0.00016712,2]
[361251168,1747392667795,-502.22,0.00016712,2]
[361251169,1747392667804,-400.0,0.00016712,2]
[361251170,1747392667814,-400.0,0.00016712,2]
[361251171,1747392667824,-400.0,0.00016712,2]
[361251172,1747392667834,-400.0,0.00016712,2]
[361251173,1747392667844,-446.09,0.00016712,2]
[361251174,1747392667854,-400.0,0.00016712,2]
[361251175,1747392667864,-436.76,0.00016712,2]
[361251176,1747392667873,-1221.93,0.00016712,2]
[361251177,1747392667884,-400.0,0.00016712,2]
[361251178,1747392667894,-1227.46,0.00016712,2]
[361251179,1747392667904,-383.0365024,0.00016712,2]
[361251180,1747392668624,-151.0,0.00016437,2]
[361251181,1747392668634,-151.0,0.00016438,2]
[361251182,1747392668644,-151.0,0.00016438,2]
[361251183,1747392668653,-151.0,0.00016438,2]
[361251184,1747392668662,-151.0,0.00016438,2]
[361251185,1747392668672,-151.0,0.00016438,2]
[361251186,1747392668681,-864.16333068,0.00016558,2]
[361251187,1747392668690,-16.9634976,0.00016712,2]
[361251188,1747392668699,-65.09323172,0.00016712,2]
[361251189,1747392668730,-400.0,0.00016438,2]
[361251190,1747392668740,-151.0,0.00016438,2]
[361251191,1747392668749,-219.95840931,0.00016712,2]
[361251192,1747392668865,-300.000003,0.00014455,2]
[361251220,1747393180318,160.08,0.00021945,30]
[361251221,1747393232486,456.0,0.00022,60]
[361251222,1747393275713,150.0,0.00027,120]
[361251225,1747393523600,450.0,0.0001,2]
[361251226,1747393530812,800.0,0.00027397,120]
[361251229,1747393708591,3056.0,0.00027397,120]
[361251232,1747393811772,200.0,0.0002731,120]
[361251234,1747393832502,-1502.46852206,0.00012,2]
[361251235,1747393832519,-386.50147794,0.00012,2]
[361251236,1747393832529,-500.0,0.00012,2]
[361251237,1747393832539,-255.98,0.00012,2]
[361251238,1747393832548,-250.0,0.000124,2]
[361251239,1747393832557,-300.0,0.00012799,2]
[361251240,1747393832566,-1448.97783646,0.000128,2]
[361251241,1747393832578,-439.99216354,0.000128,2]
[361251242,1747393832587,-80.78783646,0.000128,2]
[361251243,1747393832619,-175.19216354,0.000128,2]
[361251244,1747393832629,-697.52,0.00012876,2]
[361251245,1747393832638,-170.10769339,0.000132,2]
[361251246,1747393832650,-79.89230661,0.000132,2]
[361251247,1747393832659,-250.0,0.000132,2]
[361251248,1747393832669,-155.10769339,0.00013207,2]
[361251252,1747393832719,-563.70807734,0.00013207,2]
[361251254,1747393832732,-417.1601092,0.00013207,2]
[361251259,1747393832810,-64.02412007,0.00013207,2]
[361251261,1747393832820,-728.82,0.00013208,2]
[361251263,1747393832831,-550.0,0.00014,2]
[361251265,1747393832841,-265.0,0.00014039,2]
[361251267,1747393832850,-1888.97,0.000143,2]
[361251269,1747393832860,-255.98,0.000143,2]
[361251271,1747393832869,-1680.0,0.00014528,2]
[361251274,1747393832880,-258.57,0.00015141,2]
[361251276,1747393832889,-150.0,0.00015216,7]
[361251278,1747393832898,-208.03,0.00015223,2]
[361251280,1747393832909,-250.0,0.00015251,2]
[361251282,1747393832918,-156.80306497,0.00015279,2]
[361251284,1747393832927,-1000.0,0.00015279,2]
[361251285,1747393832937,-152.51427846,0.00015279,2]
[361251287,1747393832946,-155.0,0.00015279,2]
[361251289,1747393832955,-151.0,0.00015279,2]
[361251290,1747393832965,-845.52807468,0.00015279,2]
[361251291,1747393832974,-151.0,0.00015279,2]
[361251292,1747393832983,-668.65185757,0.00015279,2]
[361251293,1747393832993,-207.4,0.00015279,2]
[361251294,1747393833002,-348.77,0.00015369,2]
[361251295,1747393833012,-1000.0,0.00015387,2]
[361251296,1747393833021,-200.0,0.00015402,2]
[361251297,1747393833031,-728.82,0.00015472,2]
[361251298,1747393833040,-1888.97,0.000155,2]
[361251299,1747393833050,-255.98,0.000155,2]
[361251300,1747393833060,-150.0,0.00015513,2]
[361251301,1747393833069,-162.74,0.00015546,2]
[361251302,1747393833079,-1888.97,0.000156,2]
[361251303,1747393833088,-255.98,0.000156,2]
[361251304,1747393833098,-679.7799966,0.00015767,2]
[361251305,1747393833108,-166.03,0.00015775,2]
[361251306,1747393833118,-900.0,0.000158,5]
[361251307,1747393833128,-1037.0,0.00015827,2]
[361251308,1747393833138,-150.0,0.0001589,2]
[361251309,1747393833147,-1800.0,0.000159,5]
[361251310,1747393833157,-2351.0,0.00015981,2]
[361251311,1747393833167,-600.0,0.00016,2]
[361251312,1747393833176,-218.26,0.00016005,2]
[361251313,1747393833186,-658.51604097,0.00016033,2]
[361251314,1747393833195,-317.6477,0.00016237,2]
[361251315,1747393833206,-1522.5238,0.00016237,2]
[361251316,1747393833216,-6717.4972,0.00016238,2]
[361251317,1747393833226,-226.7928,0.00016238,2]
[361251318,1747393833235,-2414.89744921,0.00016327,2]
[361251319,1747393833248,-1585.86617416,0.00016327,2]
[361251320,1747393833259,-11093.03403222,0.00016327,2]
[361251321,1747393833269,-167.227,0.00016327,2]
[361251322,1747393833279,-2318.646,0.00016327,2]
[361251323,1747393833289,-500.0,0.00016337,2]
[361251324,1747393833299,-500.0,0.00016337,2]
[361251325,1747393833308,-500.0,0.00016337,2]
[361251326,1747393833318,-160.86409843,0.00016337,2]
[361251327,1747393833328,-500.0,0.00016337,2]
[361251328,1747393833338,-500.0,0.00016337,2]
[361251329,1747393833347,-500.0,0.00016337,2]
[361251330,1747393833357,-500.0,0.00016337,2]
[361251331,1747393833366,-500.0,0.00016337,2]
[361251332,1747393833376,-500.0,0.00016337,2]
[361251333,1747393833385,-500.0,0.00016337,2]
[361251334,1747393833395,-500.0,0.00016337,2]
[361251335,1747393833405,-500.0,0.00016337,2]
[361251336,1747393833415,-500.0,0.00016337,2]
[361251337,1747393833425,-500.0,0.00016337,2]
[361251338,1747393833434,-500.0,0.00016337,2]
[361251339,1747393833443,-500.0,0.00016337,2]
[361251340,1747393833452,-500.0,0.00016337,2]
[361251341,1747393833462,-500.0,0.00016337,2]
[361251342,1747393833472,-500.0,0.00016337,2]
[361251343,1747393833481,-500.0,0.00016337,2]
[361251344,1747393833490,-500.0,0.00016337,2]
[361251345,1747393833500,-500.0,0.00016337,2]
[361251346,1747393833509,-500.0,0.00016337,2]
[361251347,1747393833519,-500.0,0.00016337,2]
[361251348,1747393833528,-500.0,0.00016337,2]
[361251349,1747393833537,-500.0,0.00016337,2]
[361251350,1747393833547,-500.0,0.00016337,2]
[361251351,1747393833557,-500.0,0.00016337,2]
[361251352,1747393833568,-500.0,0.00016337,2]
[361251353,1747393833577,-500.0,0.00016337,2]
[361251354,1747393833587,-500.0,0.00016337,2]
[361251355,1747393833597,-500.0,0.00016337,2]
[361251356,1747393833610,-500.0,0.00016337,2]
[361251357,1747393833619,-500.0,0.00016337,2]
[361251358,1747393833628,-500.0,0.00016337,2]
[361251359,1747393833638,-500.0,0.00016337,2]
[361251360,1747393833650,-500.0,0.00016337,2]
[361251361,1747393833660,-500.0,0.00016337,2]
[361251362,1747393833669,-500.0,0.00016337,2]
[361251363,1747393833679,-500.0,0.00016337,2]
[361251364,1747393833690,-500.0,0.00016337,2]
[361251365,1747393833700,-500.0,0.00016337,2]
[361251366,1747393833710,-500.0,0.00016337,2]
[361251367,1747393833720,-642.48710981,0.00016337,2]
[361251368,1747393833730,-500.0,0.00016337,2]
[361251369,1747393833739,-500.0,0.00016337,2]